bitfinex/quotes_ETHUSD_20260207
["timestamp","ask_amount","ask_price","bid_price","bid_amount"]
[1770478265715,0.002,2049.5,2048.6,0.50464127]
[1770478265886,0.002,2049.5,2048.7,2.33899262]
[1770478266281,0.002,2049.7,2049.0,2.39313714]
[1770478266487,0.002,2049.7,2049.2,7.22798823]
[1770478266794,0.002,2049.7,2049.2,9.56698085]
[1770478266994,1.21927842,2050.4,2049.3,3.08741527]
[1770478267411,1.21927842,2050.4,2049.4,1.27401375]
[1770478267615,1.21927842,2050.4,2049.4,3.61300637]
[1770478267797,3.38005566,2050.5,2049.5,0.91867614]
[1770478268197,2.16080214,2050.4,2049.5,0.91867614]
[1770478268394,2.16080214,2050.4,2049.4,1.21986923]
[1770478268592,1.21925352,2050.5,2049.5,9.56698085]
[1770478268822,1.21919383,2050.6,2049.5,2.33899262]
[1770478269023,3.70519792,2050.7,2049.7,7.22798823]
[1770478269220,0.73624611,2050.6,2049.8,0.96211254]
[1770478269393,0.32525399,2050.7,2049.9,1.21957168]
[1770478269719,2.16080214,2050.6,2049.7,1.21965654]
[1770478270018,2.16080214,2050.6,2049.8,1.21962225]
[1770478270327,2.13612339,2050.5,2048.9,1.22012947]
[1770478270488,2.13612339,2050.2,2049.0,1.220107]
[1770478270694,2.13612339,2050.2,2048.9,1.22013756]
[1770478270890,2.13612339,2050.2,2049.0,1.22010652]
[1770478271225,2.13612339,2050.2,2048.8,1.22019671]
[1770478271512,2.13612339,2049.8,2048.7,1.22028603]
[1770478272240,2.13612339,2049.8,2048.5,1.22036944]
[1770478272393,2.13612339,2049.8,2048.6,1.22034441]
[1770478272596,2.13612339,2049.6,2048.3,2.32857221]
[1770478272819,2.13612339,2049.6,2048.6,1.22033615]
[1770478272995,2.13612339,2049.6,2048.4,1.22046431]
[1770478273316,2.13612339,2049.6,2048.4,1.22042024]
[1770478273511,2.13612339,2049.4,2048.2,8.44853904]
[1770478273713,2.4717167,2049.3,2048.2,10.01990681]
[1770478274991,2.4717167,2049.3,2047.7,2.32857221]
[1770478275213,2.4717167,2049.3,2048.0,1.22069496]
[1770478275422,2.13612339,2049.1,2047.7,1.22088196]
[1770478275628,2.13612339,2049.1,2047.4,1.22203108]
[1770478275629,2.13612339,2049.0,2047.4,1.22203108]
[1770478275917,7.22798823,2049.1,2047.5,1.22095972]
[1770478275918,2.13612339,2048.7,2047.5,1.22095972]
[1770478276127,2.13612339,2048.7,2047.4,1.22202358]
[1770478276427,2.13612339,2048.7,2047.5,1.22099933]
[1770478277016,2.13612339,2048.7,2047.4,1.22202898]
[1770478277223,2.13612339,2048.7,2047.4,0.48963969]
[1770478277426,2.13612339,2048.7,2047.4,0.001]
[1770478277612,2.13612339,2048.5,2047.4,0.001]
[1770478278600,2.13612339,2048.5,2047.9,0.001]
[1770478278908,3.35635187,2048.8,2047.9,0.001]
[1770478279413,1.22022848,2048.8,2047.9,0.001]
[1770478279599,2.13766808,2048.7,2047.9,0.001]
[1770478280629,0.002,2049.6,2048.7,2.32857221]
[1770478280837,2.46337738,2050.7,2049.5,7.22798823]
[1770478280998,0.32725399,2050.7,2050.0,0.004]
[1770478281201,0.32725399,2050.7,2050.1,0.05414452]
[1770478281732,0.32725399,2050.7,2049.8,9.61070496]
[1770478281733,0.32725399,2050.7,2050.0,1.21951219]
[1770478281896,0.32725399,2050.7,2049.9,1.21955432]
[1770478282297,2.40221537,2050.7,2049.9,1.21955432]
[1770478282496,1.18309584,2050.7,2049.9,1.21955432]
[1770478282901,0.32725399,2050.7,2050.1,7.22798823]
[1770478283101,0.002,2050.7,2050.1,7.22798823]
[1770478283314,0.002,2050.7,2049.9,3.60227105]
[1770478283935,0.002,2050.7,2050.2,0.05414452]
[1770478284233,2.13612339,2051.8,2050.3,7.22798823]
[1770478284445,2.13612339,2051.6,2050.4,0.72821328]
[1770478284608,2.13612339,2051.6,2050.0,7.33038823]
[1770478284805,2.13612339,2051.6,2050.2,0.05414452]
[1770478285208,2.13612339,2051.6,2050.3,7.22798823]
[1770478285402,2.13612339,2051.6,2050.4,0.72821328]
[1770478285603,2.13612339,2051.6,2049.9,8.44754255]
[1770478285830,2.13612339,2051.4,2049.9,8.44754255]
[1770478285998,2.13612339,2051.4,2050.2,7.22798823]
[1770478286615,3.35466575,2051.7,2050.5,7.22798823]
[1770478286824,2.13612339,2051.6,2050.5,7.22798823]
[1770478287032,0.33546658,2051.5,2050.5,0.72279882]
[1770478287218,0.33546658,2051.5,2050.2,9.55656044]
[1770478287418,0.33546658,2051.5,2050.5,7.22798823]
[1770478288236,0.33546658,2051.5,2050.6,1.21915536]
[1770478288541,2.47158997,2051.5,2050.6,1.21915536]
[1770478289629,3.69021609,2051.5,2050.6,1.21915536]
[1770478289825,0.36902161,2051.4,2050.6,1.21915536]
[1770478290333,2.13612339,2051.3,2050.4,1.21923124]
[1770478290917,2.13612339,2051.7,2050.7,7.80066566]
[1770478291517,0.002,2051.4,2050.7,7.80066566]
[1770478292156,0.003,2052.2,2051.3,7.80066566]
[1770478292317,0.003,2052.2,2051.3,9.01934736]
[1770478292522,0.003,2052.2,2051.3,1.2186817]
[1770478293222,2.13912339,2052.2,2051.3,1.2186817]
[1770478293423,2.13912339,2052.2,2051.3,9.01934736]
[1770478293424,0.003,2052.2,2051.3,9.01934736]
[1770478294740,0.003,2052.2,2051.3,11.34791957]
[1770478294946,0.003,2052.2,2051.4,1.62772056]
[1770478295248,0.003,2052.2,2051.6,7.80066566]
[1770478296526,0.003,2052.2,2051.4,1.62772056]
[1770478296831,0.003,2052.2,2051.5,0.05414452]
[1770478297339,0.003,2052.2,2051.5,1.27276504]
[1770478297640,0.003,2052.2,2051.6,0.99110565]
[1770478298155,0.003,2052.2,2051.4,7.01057091]
[1770478298156,0.003,2052.2,2051.4,1.21867315]
[1770478298374,0.003,2052.2,2051.2,4.875108]
[1770478298524,2.33821893,2052.2,2051.2,1.21876961]
[1770478298727,2.33821893,2052.2,2051.2,1.21876468]
[1770478298950,2.33821893,2052.2,2050.5,5.03317641]
[1770478298951,2.33821893,2052.2,2050.5,7.80066566]
[1770478299227,2.33521893,2052.0,2050.6,5.71082087]
[1770478299448,2.33521893,2052.0,2050.7,1.21909591]
[1770478300055,1.21826421,2052.1,2050.9,0.05414452]
[1770478300260,0.003,2052.2,2051.2,2.19023335]
[1770478300570,0.003,2052.2,2051.5,2.19023335]
[1770478301458,0.003,2052.2,2051.5,1.21862052]
[1770478301946,0.003,2052.2,2051.5,1.27276504]
[1770478302150,0.003,2052.2,2051.5,1.21862052]
[1770478302351,0.003,2052.2,2051.5,1.92783977]
[1770478302769,0.003,2052.2,2051.3,0.9990899]
[1770478303064,2.33821893,2052.2,2051.3,1.21871126]
[1770478303232,3.55348314,2052.1,2051.0,1.2189176]
[1770478303431,4.87605686,2052.2,2051.1,3.52563641]
[1770478303432,0.003,2052.2,2051.1,3.52563641]
[1770478303633,0.003,2052.2,2051.5,0.001]
[1770478304042,0.002,2052.0,2051.5,0.001]
[1770478307565,0.003,2052.2,2051.6,0.05414452]
[1770478309538,0.003,2052.2,2051.6,1.2185247]
[1770478309864,0.003,2052.2,2051.6,1.82791175]
[1770478310244,0.003,2052.2,2051.6,1.82792341]
[1770478310572,0.003,2052.2,2051.6,1.82793906]
[1770478310765,0.003,2052.2,2051.6,1.21855973]
[1770478311270,0.003,2052.2,2051.5,1.21960178]
[1770478311493,0.003,2052.2,2051.5,0.001]
[1770478313947,0.003,2052.2,2051.5,7.80166566]
[1770478314135,0.003,2052.2,2051.6,0.78016657]
[1770478314355,0.003,2052.2,2051.6,5.97831109]
[1770478314554,0.003,2052.2,2051.6,5.92416657]
[1770478314755,0.003,2052.2,2051.6,0.78016657]
[1770478314960,0.003,2052.2,2051.5,0.001]
[1770478315345,2.33821893,2052.2,2051.5,0.001]
[1770478315574,1.21826421,2052.1,2051.5,0.001]
[1770478315774,3.55348314,2052.1,2051.5,0.001]
[1770478317173,3.55348314,2052.1,2051.7,0.001]
[1770478317471,0.002,2052.0,2051.7,0.001]
[1770478318080,2.33721893,2052.0,2050.4,12.67756183]
[1770478318282,2.33721893,2052.0,2050.9,1.21897396]
[1770478318583,0.005,2053.1,2051.9,9.93675449]
[1770478318749,0.005,2053.1,2052.4,7.80066566]
[1770478318940,2.33521893,2053.8,2052.4,7.80066566]
[1770478319145,2.33521893,2053.7,2052.5,0.05414452]
[1770478319444,2.33521893,2053.7,2052.8,0.05414452]
[1770478319644,3.5523478,2054.1,2052.9,1.21778946]
[1770478320051,2.33521893,2054.0,2052.8,1.21781691]
[1770478320374,2.33521893,2053.9,2052.9,0.60893806]
[1770478321284,2.38936345,2053.9,2052.9,0.60893806]
[1770478321492,2.33521893,2053.8,2052.8,1.2178246]
[1770478321647,2.33521893,2054.1,2053.0,1.21773015]
[1770478321847,0.33763133,2054.2,2053.2,7.80066566]
[1770478322043,0.33763133,2054.2,2053.3,0.78006657]
[1770478322247,0.33763133,2054.2,2053.5,7.80066566]
[1770478322548,0.003,2054.2,2053.5,7.80066566]
[1770478322951,3.55186717,2054.9,2053.6,0.05414452]
[1770478323172,0.35518672,2054.8,2053.6,0.78548102]
[1770478323372,0.35518672,2054.8,2053.6,0.83962554]
[1770478323578,3.55183574,2054.9,2053.6,8.14925445]
[1770478323775,3.55146801,2055.5,2053.7,1.21731508]
[1770478324073,3.55146801,2055.5,2053.6,13.0185148]
[1770478324074,2.33521893,2055.3,2053.6,2.00282215]
[1770478324271,2.33521893,2055.3,2053.7,0.51105502]
[1770478324485,2.33521893,2055.0,2053.5,1.21743265]
[1770478324656,2.33521893,2054.9,2053.4,1.21747112]
[1770478324857,2.33521893,2054.7,2053.5,1.21742488]
[1770478325075,2.33521893,2054.7,2053.3,1.99761792]
[1770478325264,2.33521893,2054.7,2053.6,1.2173562]
[1770478325755,2.33521893,2054.7,2053.5,4.86949746]
[1770478326182,1.21664135,2054.9,2053.8,0.05414452]
[1770478326556,3.54995709,2055.0,2053.7,0.05414452]
[1770478326884,2.33336967,2054.9,2053.7,0.05414452]
[1770478327073,0.35499571,2054.8,2053.7,1.51076615]
[1770478327383,0.35499571,2054.8,2053.8,0.05414452]
[1770478327785,0.35499571,2054.8,2053.3,4.87004064]
[1770478327786,2.33336967,2054.6,2053.3,4.87004064]
[1770478327973,2.33336967,2054.6,2053.3,4.87015746]
[1770478328170,2.33336967,2054.6,2052.8,9.64257427]
[1770478328171,2.33336967,2054.6,2053.2,1.21757023]
[1770478328368,2.33336967,2054.4,2053.0,1.21770242]
[1770478328572,2.33336967,2054.4,2052.9,0.96425743]
[1770478328768,2.33336967,2054.4,2052.9,1.21774943]
[1770478328956,2.33336967,2054.4,2052.5,7.30962891]
[1770478329307,0.05414452,2054.3,2052.5,12.18164004]
[1770478329599,2.33336967,2054.2,2052.7,4.87163209]
[1770478329762,2.33336967,2054.2,2053.3,0.001]
[1770478329763,2.33336967,2054.0,2053.3,0.001]
[1770478331190,2.33336967,2054.0,2053.0,0.001]
[1770478331397,1.21707803,2054.1,2053.0,0.001]
[1770478331398,2.25986847,2053.7,2053.0,0.001]
[1770478331593,2.25986847,2053.5,2051.9,4.87347126]
[1770478331771,2.25986847,2053.3,2051.9,0.48735178]
[1770478331970,2.25986847,2053.1,2051.9,1.21837022]
[1770478332180,2.25986847,2053.1,2051.2,7.30962891]
[1770478332381,2.25986847,2053.1,2051.9,1.21837592]
[1770478332888,2.25986847,2053.1,2051.9,0.61460523]
[1770478333196,2.25986847,2053.1,2051.7,0.05414452]
[1770478333197,2.25986847,2053.1,2051.8,1.21843844]
[1770478333368,2.25986847,2053.1,2051.8,1.21843925]
[1770478333569,2.25986847,2053.1,2051.5,7.30962891]
[1770478333772,2.25986847,2053.1,2051.9,1.21838162]
[1770478333965,2.25986847,2052.9,2051.6,1.21856112]
[1770478334165,2.60762833,2052.8,2051.6,2.31531084]
[1770478335965,1.21790812,2052.7,2051.6,2.31531084]
[1770478336367,2.60762833,2052.8,2051.8,0.05414452]
[1770478336590,1.56561525,2052.8,2051.8,0.05414452]
[1770478336766,1.21785539,2052.8,2051.6,2.31531084]
[1770478336963,1.21774197,2053.0,2051.8,0.05414452]
[1770478337271,3.47761044,2053.0,2051.8,0.05414452]
[1770478338293,4.86918991,2053.8,2052.1,7.36377343]
[1770478338294,2.25986847,2053.7,2052.1,7.36377343]
[1770478338485,2.25986847,2053.7,2052.4,0.05414452]
[1770478338486,2.75220191,2053.7,2052.4,0.05414452]
[1770478338762,2.75220191,2053.7,2052.7,0.05414452]
[1770478338960,2.75220191,2053.7,2052.4,0.05414452]
[1770478338961,0.27522019,2053.6,2052.4,0.05414452]
[1770478339401,0.27522019,2053.6,2052.7,0.05414452]
[1770478339574,0.27522019,2053.6,2052.4,0.05414452]
[1770478339770,0.27522019,2053.6,2052.7,0.05414452]
[1770478340370,1.21729133,2053.8,2052.8,1.21784879]
[1770478340701,2.25986847,2053.7,2052.8,1.21784879]
[1770478340871,2.25986847,2053.7,2051.8,1.25271597]
[1770478340872,2.25986847,2053.7,2052.2,1.21817065]
[1770478341075,2.25986847,2053.7,2052.2,1.2181908]
[1770478341299,2.25986847,2053.5,2052.2,1.21817988]
[1770478341477,2.25986847,2053.5,2052.1,1.21823637]
[1770478341673,2.25986847,2053.5,2052.1,0.05414452]
[1770478341898,0.34771598,2053.6,2052.7,1.21786557]
[1770478342192,3.47704696,2054.0,2052.9,0.05414452]
[1770478342405,0.002,2054.8,2052.9,0.05414452]
[1770478342406,0.83455961,2053.9,2053.2,0.05414452]
[1770478342567,3.47680765,2054.4,2053.2,0.05414452]
[1770478342886,1.21688306,2054.5,2053.5,0.05414452]
[1770478343279,1.21688306,2054.5,2053.2,0.05414452]
[1770478343595,4.86732592,2054.6,2053.5,0.05414452]
[1770478343596,1.21682332,2054.6,2053.5,0.05414452]
[1770478344181,1.21682332,2054.6,2053.3,7.77830828]
[1770478344182,3.47669179,2054.6,2053.3,7.77830828]
[1770478344377,0.002,2054.8,2053.6,1.21737436]
[1770478344580,0.002,2054.8,2053.7,0.61410163]
[1770478344786,2.26186847,2054.8,2053.7,0.61410163]
[1770478345304,0.002,2054.8,2054.3,0.05414452]
[1770478345974,2.25986847,2055.4,2053.8,7.77830828]
[1770478346182,2.25986847,2055.2,2053.8,7.77830828]
[1770478346381,1.21648581,2055.1,2053.8,1.21721665]
[1770478346602,2.25986847,2055.0,2053.8,1.21725413]
[1770478346898,2.25986847,2054.8,2053.8,1.21725413]
[1770478347102,2.25986847,2054.8,2053.8,1.27139865]
[1770478347403,0.34763543,2054.9,2053.8,1.27139865]
[1770478347699,2.25986847,2055.0,2053.8,9.04970693]
[1770478348697,3.47647268,2054.9,2053.8,8.99556241]
[1770478348882,2.25986847,2054.8,2053.8,8.99556241]
[1770478349405,1.92886767,2055.3,2054.3,0.05414452]
[1770478349619,1.55083004,2055.9,2055.0,7.77830828]
[1770478350101,0.1357674,2056.0,2055.1,0.05414452]
[1770478350397,0.1357674,2056.0,2055.1,0.8373898]
[1770478350640,0.1357674,2056.0,2055.2,1.21642662]
[1770478350774,1.35172145,2056.0,2055.2,1.21642662]
[1770478351275,0.1357674,2056.0,2055.4,0.05414452]
[1770478351479,7.2992336,2057.6,2055.8,0.05414452]
[1770478351703,1.21507093,2057.5,2056.8,0.2541873]
[1770478352007,1.21483065,2057.9,2056.9,0.05414452]
[1770478352308,1.21465358,2058.2,2057.2,0.05414452]
[1770478352609,4.85725899,2058.8,2057.2,0.05414452]
[1770478352610,0.1357674,2060.0,2059.8,1.26785454]
[1770478352808,0.33381742,2060.4,2059.9,1.26204804]
[1770478353010,3.47277259,2061.2,2059.9,0.65036991]
[1770478353175,3.47277259,2061.2,2060.0,0.05414452]
[1770478353377,3.47277259,2061.2,2059.9,7.2992336]
[1770478353378,0.83243154,2061.1,2059.9,7.2992336]
[1770478353601,3.09230001,2061.1,2060.0,0.05414452]
[1770478353804,2.25986847,2060.8,2058.8,0.05414452]
[1770478354005,2.25986847,2060.4,2058.3,7.2992336]
[1770478354210,0.43052225,2061.0,2060.2,0.05414452]
[1770478354418,2.25986847,2060.1,2058.2,0.25372476]
[1770478354717,2.25986847,2060.1,2057.0,0.05414452]
[1770478354718,2.25986847,2058.6,2057.0,0.05414452]
[1770478354916,3.21577868,2058.5,2057.3,0.05414452]
[1770478355118,2.25986847,2058.5,2057.0,0.05414452]
[1770478355318,7.2992336,2058.9,2057.9,0.05414452]
[1770478355319,2.25986847,2058.9,2057.9,0.05414452]
[1770478355629,1.21414075,2059.1,2058.0,1.26888462]
[1770478355784,1.21400475,2059.3,2057.8,1.21485041]
[1770478355985,1.21400475,2059.3,2057.7,7.2992336]
[1770478356182,1.21400475,2059.3,2058.0,1.21475997]
[1770478356387,1.21400475,2059.3,2057.7,7.2992336]
[1770478356588,1.21412267,2059.1,2057.3,7.2992336]
[1770478356792,3.38711816,2059.1,2057.3,7.2992336]
[1770478357013,3.38711816,2059.1,2057.0,7.27034944]
[1770478357014,2.17299549,2059.0,2057.0,7.27034944]
[1770478357291,2.17299549,2058.8,2057.1,0.72703291]
[1770478357492,0.90765981,2059.0,2057.7,1.21493743]
[1770478357799,0.90765981,2059.0,2057.8,0.61288769]
[1770478357998,0.90765981,2059.0,2057.7,1.21492534]
[1770478358194,3.0806553,2059.0,2057.4,0.05414452]
[1770478358421,3.0806553,2059.0,2057.4,0.73533781]
[1770478358422,0.4294778,2058.9,2057.4,0.73533781]
[1770478358588,0.4294778,2058.9,2057.7,1.21494008]
[1770478358794,0.4294778,2058.9,2057.5,4.86007521]
[1770478358795,1.21429959,2058.8,2057.5,4.86007521]
[1770478358994,1.21429959,2058.8,2057.6,0.05414452]
[1770478359196,0.65009758,2058.7,2057.6,0.5853461]
[1770478359397,1.64375433,2058.9,2057.6,0.5853461]
[1770478359788,1.6437241,2058.9,2057.9,0.05414452]
[1770478359992,1.2142463,2058.9,2057.9,0.05414452]
[1770478360192,1.2142463,2058.9,2057.8,0.05414452]
[1770478360410,4.85610963,2059.4,2058.1,0.05414452]
[1770478360616,0.82430509,2059.3,2057.8,0.05414452]
[1770478360824,2.17299549,2059.0,2057.8,0.05414452]
[1770478361001,2.17299549,2059.0,2057.7,0.05414452]
[1770478361328,2.17299549,2059.0,2057.6,1.80031941]
[1770478361628,0.33871182,2058.9,2057.7,0.66062489]
[1770478361922,0.33871182,2058.9,2057.9,0.05414452]
[1770478362426,0.33871182,2058.9,2058.0,0.05414452]
[1770478362596,1.21412267,2059.1,2057.7,0.66062489]
[1770478362793,4.85649069,2059.2,2057.9,1.26893317]
[1770478363004,4.85649069,2059.2,2058.0,0.05414452]
[1770478363320,4.85649069,2059.2,2057.9,1.21478865]
[1770478363622,2.03834074,2059.3,2058.3,0.05414452]
[1770478363820,0.90671909,2059.2,2058.3,0.05414452]
[1770478364505,0.90671909,2059.2,2058.0,0.05414452]
[1770478364908,1.21412267,2059.1,2057.7,7.95985849]
[1770478365111,3.38711816,2059.1,2057.9,0.05414452]
[1770478365413,0.91503237,2059.0,2057.9,4.91342116]
[1770478365617,0.91503237,2059.0,2058.0,1.21476502]
[1770478365807,3.08802786,2059.0,2057.7,0.66062489]
[1770478366009,3.08802786,2059.0,2057.3,7.35337812]
[1770478366229,2.17299549,2058.9,2057.7,1.21491059]
[1770478366631,2.17299549,2058.9,2057.9,1.26896704]
[1770478366924,1.21429959,2058.8,2058.0,4.85889906]
[1770478367123,2.1292255,2059.0,2058.2,0.05414452]
[1770478367422,2.1292255,2059.0,2058.0,1.21477162]
[1770478367423,3.38697027,2059.4,2058.3,0.05414452]
[1770478367724,1.21397478,2059.4,2058.6,0.05414452]
[1770478367894,1.21397478,2059.4,2058.3,0.05414452]
[1770478368100,1.21397478,2059.4,2058.6,0.05414452]
[1770478368602,1.21374971,2059.8,2058.6,0.05414452]
[1770478368793,0.73629916,2059.7,2058.6,0.05414452]
[1770478369002,0.73629916,2059.7,2059.0,0.05414452]
[1770478369304,2.17299549,2061.2,2060.2,0.05414452]
[1770478369521,4.85066456,2061.6,2060.3,0.05414452]
[1770478369740,4.85066456,2061.6,2059.5,7.2992336]
[1770478369741,0.48507288,2061.5,2059.8,0.05414452]
[1770478369921,2.65806837,2061.5,2060.1,0.05414452]
[1770478370433,2.65806837,2061.5,2058.8,1.21429959]
[1770478370434,2.17299549,2061.0,2058.8,1.21429959]
[1770478370617,7.78430648,2061.5,2059.5,0.05414452]
[1770478370618,3.1202184,2060.9,2059.5,0.05414452]
[1770478370935,2.17299549,2060.6,2059.5,1.26800738]
[1770478371139,2.17299549,2060.6,2059.3,4.85584577]
[1770478371336,1.21317998,2060.7,2059.5,1.21388031]
[1770478371744,1.21317998,2060.7,2059.5,1.26802528]
[1770478371944,7.02571543,2060.9,2059.5,1.26802528]
[1770478371945,3.38609508,2060.9,2059.8,0.05414452]
[1770478372119,3.38609508,2060.9,2059.6,0.61237632]
[1770478372639,3.38609508,2060.9,2059.6,0.66652084]
[1770478372845,0.82383441,2060.8,2059.6,0.66652084]
[1770478373042,1.21317998,2060.7,2059.5,1.26800645]
[1770478373247,1.21317998,2060.7,2059.6,0.05414452]
[1770478373740,2.17299549,2060.6,2059.5,1.21388551]
[1770478373944,1.21317998,2060.7,2059.5,1.21388551]
[1770478374146,0.68897343,2060.6,2059.7,0.05414452]
[1770478374346,4.85243114,2060.9,2059.7,0.05414452]
[1770478374646,1.21304095,2061.0,2060.0,0.05414452]
[1770478374830,0.003,2060.3,2060.0,0.05414452]
[1770478375029,1.21304095,2061.0,2060.0,0.05414452]
[1770478375344,3.3861166,2060.8,2059.7,1.21373513]
[1770478375543,3.3861166,2060.8,2059.9,1.21362211]
[1770478375750,3.3861166,2060.8,2059.9,1.2136489]
[1770478376045,0.88449649,2060.7,2060.1,0.05414452]
[1770478376238,1.81958275,2060.9,2059.8,0.05414452]
[1770478376542,1.81958275,2060.9,2059.6,4.85527268]
[1770478376745,1.81958275,2060.9,2059.1,0.05414452]
[1770478376746,2.17299549,2060.8,2059.1,0.05414452]
[1770478376916,2.17299549,2060.4,2059.3,1.21397485]
[1770478377116,2.17299549,2060.4,2058.7,1.21435857]
[1770478377117,2.17299549,2060.2,2058.7,1.21435857]
[1770478377520,2.17299549,2059.8,2058.3,1.21459407]
[1770478377748,2.17299549,2059.6,2058.3,0.61275888]
[1770478378138,2.17299549,2059.6,2058.3,1.82735269]
[1770478378449,2.17299549,2059.6,2058.3,1.82730093]
[1770478378743,2.17299549,2059.6,2058.3,0.61275888]
[1770478378944,2.17299549,2059.4,2057.9,0.001]
[1770478379147,1.21400475,2059.3,2058.0,0.05414452]
[1770478379315,2.17299549,2059.2,2058.0,1.26888327]
[1770478379515,0.31202184,2059.5,2058.4,0.05414452]
[1770478379716,1.21392569,2059.5,2058.4,0.05414452]
[1770478380117,1.21392569,2059.5,2058.1,0.6129183]
[1770478380366,4.33404203,2059.7,2058.7,0.05414452]
[1770478380523,2.16104654,2059.7,2058.7,0.05414452]
[1770478380846,4.8543895,2060.0,2058.7,0.05414452]
[1770478380847,1.21359223,2060.0,2059.0,0.05414452]
[1770478381047,2.17299549,2059.9,2058.1,0.66706282]
[1770478381228,1.21376899,2059.7,2058.6,1.21441756]
[1770478381527,2.17299549,2059.6,2058.1,0.6129183]
[1770478381728,2.17299549,2059.2,2057.6,1.27012071]
[1770478381945,7.2992336,2059.3,2057.6,1.21598757]
[1770478381946,2.17299549,2059.0,2057.6,1.21598757]
[1770478382137,2.17299549,2059.0,2057.6,0.001]
[1770478382349,7.2992336,2058.9,2057.6,0.001]
[1770478382551,2.17299549,2058.8,2057.6,0.001]
[1770478382717,7.2992336,2058.9,2057.6,0.001]
[1770478382718,2.17299549,2058.6,2057.6,0.001]
[1770478383230,2.17299549,2058.9,2057.6,0.001]
[1770478384044,8.51341524,2059.0,2057.6,0.001]
[1770478384045,2.17299549,2058.5,2057.6,0.001]
[1770478384467,1.43173647,2058.9,2057.6,0.001]
[1770478384657,2.17299549,2059.0,2057.7,0.05414452]
[1770478384857,3.38688235,2059.5,2058.2,0.05414452]
[1770478385053,3.38688235,2059.5,2058.5,0.05414452]
[1770478385217,3.38688235,2059.5,2058.3,1.21459456]
[1770478385423,2.88688235,2059.5,2058.3,1.21459456]
[1770478385616,0.77423644,2059.4,2058.4,0.61271174]
[1770478387149,0.77423644,2059.4,2058.5,0.05414452]
[1770478387353,1.21371006,2059.8,2058.6,1.21441756]
[1770478387562,3.58234182,2059.9,2058.9,0.05414452]
[1770478387858,1.21369395,2059.9,2058.6,1.21441756]
[1770478388059,1.21369395,2059.9,2058.7,0.61262323]
[1770478388270,2.36864787,2060.0,2058.8,0.05414452]
[1770478388469,5.47671219,2061.8,2060.0,0.05414452]
[1770478388470,2.36864787,2061.2,2060.0,0.05414452]
[1770478388643,9.08478059,2061.6,2059.7,0.05414452]
[1770478388644,1.532,2061.6,2059.7,0.05414452]
[1770478388850,1.21287087,2061.3,2060.1,0.05414452]
[1770478389048,1.21286351,2061.3,2060.1,0.05414452]
[1770478389246,1.21270919,2061.5,2060.2,1.21347441]
[1770478389462,1.21270919,2061.5,2060.3,0.61215166]
[1770478389933,2.37064787,2061.0,2059.2,7.4016336]
[1770478390133,2.37064787,2061.0,2059.4,0.05414452]
[1770478390337,2.37064787,2061.0,2060.1,1.21352668]
[1770478390338,0.002,2061.0,2060.1,1.21352668]
[1770478390569,0.002,2061.0,2060.1,1.2135308]
[1770478390772,0.002,2061.0,2060.3,0.05414452]
[1770478391138,0.002,2061.0,2060.1,1.2135308]
[1770478391333,0.002,2061.0,2060.2,0.61220111]
[1770478391744,0.25354647,2061.7,2060.7,0.05414452]
[1770478391939,2.36498412,2062.1,2061.0,0.05414452]
[1770478392271,12.14714627,2062.8,2060.7,0.05414452]
[1770478392272,2.36498412,2062.6,2061.4,0.05414452]
[1770478392440,9.66421772,2062.4,2060.7,0.05414452]
[1770478392635,2.36498412,2062.4,2061.0,0.05414452]
[1770478392968,7.2992336,2062.2,2060.5,0.05414452]
[1770478393269,2.6695286,2062.6,2061.4,1.21273333]
[1770478393467,1.21212061,2062.6,2061.6,0.05414452]
[1770478393672,2.42674616,2062.7,2061.6,0.05414452]
[1770478393841,0.003,2062.0,2061.4,1.21273333]
[1770478394041,0.003,2062.0,2061.0,1.21296315]
[1770478394236,0.003,2062.0,2061.1,1.21290746]
[1770478394439,0.003,2062.0,2060.3,2.34893026]
[1770478394788,0.003,2062.0,2060.6,1.26735082]
[1770478395077,0.003,2062.0,2059.9,4.90868385]
[1770478395078,2.36498412,2061.7,2059.8,2.34893026]
[1770478395287,2.36498412,2061.7,2060.0,1.26771012]
[1770478395288,3.57763448,2061.6,2060.0,1.26771012]
[1770478395441,3.57763448,2061.6,2059.8,1.21366959]
[1770478395442,9.66421772,2061.4,2059.8,1.21366959]
[1770478395642,2.36498412,2061.0,2059.6,1.21381588]
[1770478395853,2.36498412,2061.0,2059.4,4.90973416]
[1770478396088,2.36498412,2060.6,2058.8,0.77889633]
[1770478396394,2.36498412,2060.6,2059.1,0.05414452]
[1770478396554,0.72992336,2061.0,2060.1,0.05414452]
[1770478396750,0.84282359,2061.5,2060.2,0.05414452]
[1770478397083,0.003,2062.0,2061.3,7.2992336]
[1770478397262,0.003,2062.0,2061.4,1.21276802]
[1770478397665,0.05414452,2062.9,2061.4,1.21276802]
[1770478397883,0.05414452,2062.9,2061.4,3.56169828]
[1770478397884,1.26605033,2062.9,2061.4,3.56169828]
[1770478398178,1.26605033,2062.9,2061.5,0.60638401]
[1770478398551,1.21190581,2062.9,2061.5,0.60638401]
[1770478399246,0.002,2063.0,2061.6,3.56158062]
[1770478399595,0.05414452,2063.8,2061.6,3.56158062]
[1770478399596,7.2992336,2066.1,2063.4,2.34893026]
[1770478399809,2.41912864,2066.2,2063.2,0.05614452]
[1770478399810,0.97183622,2066.0,2064.2,2.34893026]
[1770478399951,1.20998532,2066.2,2064.2,2.34893026]
[1770478399952,1.20998532,2066.2,2064.6,0.05414452]
[1770478400149,1.20954085,2066.9,2064.9,9.64816386]
[1770478400448,7.2992336,2066.6,2065.0,0.96481639]
[1770478400792,1.33469379,2066.8,2064.1,0.25323485]
[1770478400793,7.35337812,2065.4,2064.1,0.25323485]
[1770478400996,7.2992336,2065.0,2064.1,0.25323485]
[1770478401197,2.36498412,2064.9,2062.5,9.70230838]
[1770478401424,2.36498412,2064.9,2061.8,0.05414452]
[1770478401425,0.30737937,2063.0,2061.8,0.05414452]
[1770478401557,0.05414452,2064.4,2061.8,0.05414452]
[1770478401558,2.36498412,2064.3,2061.8,0.05414452]
[1770478401878,7.2992336,2064.4,2061.2,0.05414452]
[1770478401879,2.36498412,2063.9,2061.9,7.35337812]
[1770478402063,2.36498412,2063.9,2062.5,1.2121152]
[1770478402263,2.36498412,2063.9,2062.3,4.90303958]
[1770478402264,0.70747146,2064.6,2063.5,0.05414452]
[1770478402463,0.70747146,2064.6,2063.1,0.05414452]
[1770478402665,2.43064029,2064.8,2063.2,0.05414452]
[1770478402860,2.17721235,2064.8,2063.2,0.05414452]
[1770478403199,4.84206415,2065.3,2063.2,0.05414452]
[1770478403200,2.36498412,2065.6,2064.2,0.05414452]
[1770478403381,0.30707927,2067.0,2064.6,0.05414452]
[1770478403382,1.21000919,2066.1,2064.6,0.05414452]
[1770478403702,1.21000919,2066.1,2064.4,7.2992336]
[1770478403906,1.21000919,2066.1,2064.1,1.2652879]